Cogmind - Beta 9.6 --- EXPLORER MODE // 2020.06.09 @ 12:20:11 Player: Varla Result: Destroyed by Y-45 Defender with Heavy Assault Rifle Performance ------------- Evolutions (1) 500 Regions Visited (2) 400 Robots Destroyed (27) 135 Value Destroyed (675) 675 Prototype IDs (0) 0 Alien Tech Used (0) 0 Bonus (0) 0 TOTAL SCORE: 1710 Bonus ------- None Cogmind --------- Core Integrity 0/400 Matter 284/300 Energy 100/100 System Corruption 0% Temperature Cool (9) Movement Core (50) Location -9/Materials Parts ------- > --- POWER (2) -------- (None) > --- PROPULSION (3) --- (None) > --- UTILITY (3) ------ Weapon Shielding > --- WEAPON (2) ------- (None) > --- INVENTORY (4) ---- High-capacity Storage Unit Visual Processing Unit Peak State ------------ > --- POWER ------------ Light Ion Engine Light Nuclear Core > --- PROPULSION ------- Light Treads Light Treads Light Treads > --- UTILITY ---------- Sensor Array Weapon Shielding Light Armor Plating > --- WEAPON ----------- Small Laser Assault Rifle > --- INVENTORY -------- High-capacity Storage Unit Visual Processing Unit [Rating: 12] Favorites ----------- Power Light Ion Engine Engine Light Ion Engine Power Core Light Nuclear Core Propulsion Light Treads Treads Light Treads Wheel Wheel Utility Weapon Shielding Device Sensor Array Storage Medium Storage Unit Protection Weapon Shielding Weapon Assault Rifle Energy Gun Small Laser Ballistic Gun Assault Rifle Build | -11 -10 -9 ------- Run | Scr Mat Mat Slots Evolved 3 | . 1 2 Power 1 | . 1 . Propulsion 1 | . . 1 Utility 1 | . . 1 Weapon . | . . . Parts Attached 16 | 8 2 6 Power 2 | 1 1 . Engine 1 | 1 . . Core 1 | . 1 . Reactor . | . . . Propulsion 5 | 2 . 3 Treads 3 | 2 . 1 Leg . | . . . Wheel 2 | . . 2 Hover . | . . . Flight . | . . . Utility 6 | 3 . 3 Device 2 | . . 2 Storage 2 | 1 . 1 Processor . | . . . Hackware . | . . . Protection 2 | 2 . . Artifact . | . . . Weapon 3 | 2 1 . Energy Gun 2 | 1 1 . Energy Cannon . | . . . Ballistic Gun 1 | 1 . . Ballistic Cannon . | . . . Launcher . | . . . Special Weapon . | . . . Impact Weapon . | . . . Slashing Weapon . | . . . Piercing Weapon . | . . . Special Melee Weapon . | . . . Unidentified Prototypes . | . . . Parts Lost 7 | . . 7 Power 2 | . . 2 Propulsion 2 | . . 2 Utility 1 | . . 1 Weapon 2 | . . 2 Highest Loss Streak 6 | . . 6 Average Slot Usage (%) 84 | . 93 71 Engine 10 | . 12 9 Core 7 | . 5 8 Treads 17 | . 25 5 Wheel 4 | . . 12 Device 1 | . . 2 Protection 21 | . 25 15 Energy Gun 10 | . 12 8 Ballistic Gun 10 | . 12 9 Naked Turns . | . . . Heaviest Build 16 | 11 16 16 Greatest Support 60 | 40 40 60 Greatest Overweight (x) 1 | . . 1 Average Overweight (x) . | . . . Largest Inventory Capacity 12 | 8 4 12 Average Capacity 4 | 4 4 4 Most Carried 4 | 1 4 4 Average Carried 2 | . 2 2 Final Capacity 4 | 4 4 4 Final Carried 3 | . 3 2 Class Distribution -------------------- 100% | Hacker-Mutant Dominant Class ---------------- Hacker-Mutant | -10/Materials Hacker-Mutant | -9/Materials Resources | -11 -10 -9 ----------- Run | Scr Mat Mat Matter Collected 568 | 213 131 224 Remotely . | . . . Salvage Created 824 | . 196 628 Parts 68 | . 13 55 Haulers Intercepted . | . . . Recyclers Shooed 1 | . . 1 Parts Field Recycled . | . . . Retrieved Matter . | . . . Parts Self-Destructed . | . . . Prevented . | . . . Kills | -11 -10 -9 ------- Run | Scr Mat Mat Combat Hostiles Destroyed 17 | . 5 12 Guns 17 | . 5 12 Classes Destroyed 6 | . 3 3 Worker 1 | . . 1 Builder 4 | . . 4 Watcher 5 | . 2 3 Swarmer 4 | . 2 2 Grunt 10 | . 3 7 Sentry 3 | . . 3 Best Kill Streak 11 | . 3 11 Combat Bots Only 3 | . 2 3 Max Kills in Single Turn 2 | . 1 2 Gunslinging 1 | . . 1 Exploded . | . . . Melee . | . . . Uniques/NPCs Destroyed . | . . . Combat | -11 -10 -9 -------- Run | Scr Mat Mat Damage Taken 926 | . 111 815 Core 413 | . 11 402 Absorbed by Shields . | . . . Core Remaining (%) 97 | 100 95 . Volleys Fired 84 | . 18 66 Largest 2 | . 2 2 Hottest 70 | . 70 60 Shots Fired 154 | . 36 118 Gun 154 | . 36 118 Cannon . | . . . Launcher . | . . . Special . | . . . Kinetic 84 | . 18 66 Thermal 70 | . 18 52 Explosive . | . . . Electromagnetic . | . . . Robot Hit Streak 26 | . 12 26 Robot Miss Streak 2 | . 2 1 Penetration Max . | . . . Secondary Targets 4 | . 1 3 Max Gunslinging Chain 1 | . 1 1 Shots Hit Robots 129 | . 28 101 Core Hits 42 | . 11 31 Critical Hits 1 | . . 1 Critical Kills 1 | . . 1 Critical Parts Destroyed . | . . . Melee Attacks . | . . . Impact . | . . . Slashing . | . . . Piercing . | . . . Sneak Attacks . | . . . Combat Hostiles . | . . . Follow-up Attacks . | . . . Damage Inflicted 1221 | . 360 861 Guns 1221 | . 360 861 Cannons . | . . . Explosions . | . . . Melee . | . . . Ramming . | . . . Kinetic 659 | . 171 488 Thermal 562 | . 189 373 Explosive . | . . . Electromagnetic . | . . . Impact . | . . . Slashing . | . . . Piercing . | . . . Highest Corruption 1 | . 1 . Average Corruption 1 | . 1 . Corruption Purged . | . . . Effects 2 | . 2 . Energy Discharges 2 | . 2 . Overload Shots . | . . . Overflow Damage . | . . . Projectiles . | . . . Explosions . | . . . Melee . | . . . Knockbacks . | . . . Impact . | . . . Kinetic . | . . . Secondary . | . . . Self-Inflicted Damage . | . . . Shots . | . . . Rammed . | . . . Targets Rammed . | . . . Kicked . | . . . Crushed . | . . . Highest Temperature 345 | . 195 345 Average Temperature 108 | . 58 124 Received Heat Transfer 489 | . 63 426 Effects 5 | . . 5 Shutdowns 1 | . . 1 Energy Bleed 2 | . . 2 Interference 2 | . . 2 Siege Activations . | . . . Robots Corrupted . | . . . Combat Hostiles . | . . . Parts Fried . | . . . Impact Corruptions . | . . . Robots Melted . | . . . Combat Hostiles . | . . . Parts Melted 2 | . 1 1 Heat Transferred 1405 | . 555 850 Parts Sabotaged . | . . . Parts Stolen . | . . . Parts Stripped . | . . . Power Chain Reactions . | . . . Missiles Intercepted . | . . . Alert | -11 -10 -9 ------- Run | Scr Mat Mat Peak Influence 412 | . 164 412 Average Influence 95 | . 32 211 Maximum Alert Level 2 | . . 2 Low Security (%) 78 | 100 100 42 Level 1 20 | . . 56 Level 2 . | . . . Level 3 . | . . . Level 4 . | . . . Level 5 . | . . . High Security . | . . . Max Security . | . . . Squads Dispatched 1 | . . 1 Investigation . | . . . Extermination . | . . . Reinforcement 1 | . . 1 Assault . | . . . Garrison . | . . . Intercept . | . . . Construction Impeded . | . . . Haulers Reinforced . | . . . Stealth | -11 -10 -9 --------- Run | Scr Mat Mat Distress Signals 1 | . . 1 Communications Jammed . | . . . Distress Signals . | . . . Times Spotted 30 | . 8 22 Peak Tracking Total 7 | . 3 7 Tactical Retreats 2 | . 1 1 Traps | -11 -10 -9 ------- Run | Scr Mat Mat Traps Triggered 1 | . 1 . Indirectly . | . . . Trap Hack Attempts . | . . . Triggered . | . . . Disarmed . | . . . Reprogrammed . | . . . Reused . | . . . Traps Extracted . | . . . Installed . | . . . Triggered . | . . . Machines | -11 -10 -9 ---------- Run | Scr Mat Mat Machines Disabled 2 | . . 2 Max in Single Turn 1 | . . 1 Machines Sabotaged . | . . . Garrisons Compromised . | . . . Overloaded Fab Kills . | . . . Fab Network Shutdowns . | . . . Hacking | -11 -10 -9 --------- Run | Scr Mat Mat Machines Accessed 2 | . 2 . Terminals 1 | . 1 . Fabricators . | . . . Repair Stations . | . . . Recycling Units 1 | . 1 . Scanalyzers . | . . . Garrison Access . | . . . Total Hacks 4 | . 4 . Successful 3 | . 3 . Failed 1 | . 1 . Catastrophic . | . . . Database Lockouts . | . . . Manual . | . . . Terminals 2 | . 2 . Fabricators . | . . . Repair Stations . | . . . Recycling Units 2 | . 2 . Scanalyzers . | . . . Garrison Access . | . . . Terminal Hacks 2 | . 2 . Record 2 | . 2 . Fabricator Hacks . | . . . Repair Station Hacks . | . . . Recycling Unit Hacks 1 | . 1 . Process 1 | . 1 . Scanalyzer . | . . . Garrison Access Hacks . | . . . Unauthorized Hacks . | . . . Terminals . | . . . Fabricators . | . . . Repair Stations . | . . . Recycling Units . | . . . Scanalyzers . | . . . Garrison Access . | . . . Data Cores Recovered . | . . . Used . | . . . Hacking Detections 2 | . 2 . Full Trace Events . | . . . Feedback Events . | . . . Feedback Blocked . | . . . Robot Schematics Acquired . | . . . Robots Built . | . . . Matter . | . . . Time . | . . . Total Robot Build Rating . | . . . Part Schematics Acquired . | . . . Parts Built . | . . . Matter . | . . . Time . | . . . Total Part Build Rating . | . . . Parts Repaired . | . . . Time . | . . . Parts Recycled . | . . . Recycled Matter 77 | . 77 . Retrieved Matter . | . . . Retrieved Components . | . . . Parts Scanalyzed . | . . . Part Schematics Acquired . | . . . Parts Damaged . | . . . Bothacking | -11 -10 -9 ------------ Run | Scr Mat Mat Used RIF Installer . | . . . Robots Hacked . | . . . Non-combat . | . . . Combat . | . . . Robot Hacks Applied . | . . . Relay Couplers Released . | . . . Robots Rewired . | . . . Allies Hacked . | . . . Hacks Repelled . | . . . Allies | -11 -10 -9 -------- Run | Scr Mat Mat Total Allies . | . . . Largest Group . | . . . Highest-Rated Group . | . . . Highest-Rated Ally . | . . . Total Orders . | . . . Ally Attacks . | . . . Total Damage . | . . . Kills . | . . . Allies Corrupted . | . . . Allies Melted . | . . . Intel | -11 -10 -9 ------- Run | Scr Mat Mat Robot Analysis Total . | . . . Derelict Logs Recovered . | . . . Drone Launches . | . . . Drone Recoveries . | . . . Exploration | -11 -10 -9 ------------- Run | Scr Mat Mat Turns Passed 1106 | 77 624 405 Spaces Moved 537 | 40 339 158 Core 5 | 3 . 2 Treads 418 | 37 339 42 Legs . | . . . Wheels 114 | . . 114 Hover . | . . . Flight . | . . . Fastest Speed 50 | 50 160 50 Average Speed 142 | 151 160 101 Slowest Speed 160 | 160 160 160 Overloaded Moves . | . . . Propulsion Burnouts . | . . . Robots Hopped . | . . . Cave-ins Triggered . | . . . Exploration Rate (%) 28 | 4 57 23 Regions Visited 2 Branch Regions . Pre-discovered Areas . | . . . Known Exits Taken 2 | 1 1 . Unknown Exits Taken . | . . . Scrap Searched . | . . . Spaces Dug . | . . . Terrain Destroyed . | . . . Melee . | . . . Projectile . | . . . AOE . | . . . Actions | -11 -10 -9 --------- Run | Scr Mat Mat Total 732 | 57 387 288 Wait 65 | . 18 47 Move 535 | 39 338 158 Hop . | . . . Pick Up 18 | 8 7 3 Fast Attach . | . . . Attach 16 | 8 2 6 Detach 6 | 1 1 4 Swap . | . . . Drop 8 | 1 3 4 Fire 84 | . 18 66 Melee . | . . . Ram . | . . . Kick . | . . . Crush . | . . . Escape Stasis . | . . . Rewire . | . . . Trap . | . . . Miscellaneous . | . . . Route ------- -11/Scrapyard -10/Materials (discovered 2 exits: *Mat / *Min) -9/Materials History --------- Turn | Location | Event 50 | -11/Scrapyard | Identified exit to Materials 50 | -11/Scrapyard | Discovered exit to Materials (range 15) 78 | -11/Scrapyard | Entered Materials 78 | -10/Materials | Evolved 1 slot: Power x1 307 | -10/Materials | Identified exit to Mines 307 | -10/Materials | Discovered exit to Mines (range 9) 311 | -10/Materials | Build established: Hacker-Mutant 624 | -10/Materials | Identified exit to Materials 624 | -10/Materials | Discovered exit to Materials (range 8) 702 | -10/Materials | Entered another Materials area 702 | -9/Materials | Evolved 2 slots: Propulsion x1, Utility x1 1090 | -9/Materials | Core integrity fell below 50% 1101 | -9/Materials | Core integrity fell below 20% 1107 | -9/Materials | Destroyed by Y-45 Defender with Heavy Assault Rifle Last Messages --------------- [Achievement: Uninvited Guest] 01023_ G-47 Trooper destroyed. 01023_ K-01 Serf collects debris. 01026_ G-34 Mercenary destroyed. 01028_ K-01 Serf collects debris. 01032_ Y-45 Defender suffers critical hit. 01032_ Y-45 Defender destroyed. 01032_ K-01 Serf collects debris. 01038_ Acquired 27 matter. 01039_ K-01 Serf collects debris. 01054_ Sml. Laser destroyed. 01054_ Lgt. Nuclear Core destroyed. 01060_ C-30 ARC bursts open, deploying its payload. 01063_ Wheel destroyed. 01063_ Lgt. Ion Engine destroyed. 01069_ K-01 Serf collects debris. 01075_ W-16 Scout destroyed. 01079_ Assault Rifle destroyed. 01086_ S-10 Pest destroyed. 01095_ K-01 Serf collects debris. Map ----- +----------------------------------------------------+ | ??????????????????????????????????????????????? | | ??????????????????????????????????????????????? | | ??????????????????????????????????????????????? | | ??????????????????????????????????????????????? | | ??????????????????????????????????????????????? | | ??????????????????????????????????????????????? | | ???????????????????????????????????##########?? | | ???????????????????????????????????# ### | | ???????????????????????????????????# # | | ???????????????????????????????????# /! # | | ???????????????????????????????????# !! # | | ???????????????????????????????????# + | | ???????????????????????????????????# % # | | ???????????????????????????????????# # | | ???????????????????????????????????# # | | ??????????????????##???????????????# # | | ????????????#???### ######?????????########## | | ????????????# ??# #??????????????????# | | ????????????? ?# Y #??????????????????# | | ?????????????? # #??????????????????# | | ??????????????? + g #??????????????????# | | ????????????????# s #????????????????### | | ????????????????# k #??????????####### ### | | ????????????????# s!=! #??????????# | | ????????????????# ! %! #??????????#" | | ????????????????# b @%*############" = | | ????????????????#######;### #" =% | | ??????????????????????#[#?# """ #T """""! | | ????????????????????### ### """""#" """" | | ????????????# ##### # [[ """""#" """"" | | ????????????+ ^ #!%%!"""""#" | | ????????????# ^" +=*= """ # """"" | | ????????????# % # =% # """"" | | ????????????######+## # # """"" | | ????????????????????###/###########+# | | ?????????????????????? ?????????# #######+#+# | | ?????????????????????? ?????????# =%* !% | | ?????????????????????? = ?????#####+##### ! | | ?????????????????????? ?????# # | | ??????????????????????"" ?????# # | | ??????????????????????"" ?????# # | | ???????????????????????? ?????# ##### | | ???????????????????????? ?????###########???# | | ????????????????????????????????????????????# | | ????????????????????????????????????????????# | | ????????????????????????????????????????????# | | ????????????????????????????????????????????# | | ???????????????????????????????????????????? | | ???????????????????????????????????????????? | | ???????????????????????????????????????????#### | +----------------------------------------------------+ Best States ------------- Heat Dissipation 28 Energy Generation 19 Energy Capacity 185 Matter Stores 300 Matter Capacity 300 Sight Range 16 Robot Scan Range 10 Terrain Scan Density 10 Armor Coverage 150 Resistance: KI 35 Resistance: TH 35 Resistance: EX 35 Resistance: EM 35 Resistance: I 35 Resistance: S 35 Resistance: P 35 Weapon Shielding 33 Evasion (%) 44 Recoil Reduction 3 Offensive Hacking 20 Item Schematics ----------------- None Robot Schematics ------------------ None Fabricated ------------ Nothing Alien Tech Used ----------------- None Achievements -------------- Uninvited Guest Challenges ------------ None Game ------ Seed SpectralReinforcedVibroblade Manual? 0 Play Time 00:42:19 Cumulative 2.5 hours Start 2020.06.09 @ 10:42:58 End 2020.06.09 @ 12:20:11 Sessions 1 Manual Loads 0 Difficulty Explorer Special Mode None Game No. 2 Rogue 0 Adventurer 0 Explorer 2 Win Type - Total 0 Types 0/0/0/0/0/0/0 Lore% 0 Gallery% 2 Achievement% 2 Wizard Run 0 Options --------- ASCII 0 Keyboard 0 Movement Mouse Keybinds 0 Fullscreen 0 Font 14/Terminus Map View 76x50 Tactical HUD 1 Map Filters NONE Filters NONE Steam 1 RUN: e0d525f0-085a-4088-9351-1e3cc9677337